bitfinex-derivatives/quotes_BTCF0:USTF0_20251125
["timestamp","ask_amount","ask_price","bid_price","bid_amount"]
[1764028802259,0.93821803,88327.0,88326.0,0.00016979]
[1764028803469,0.93821803,88327.0,88320.0,0.08147731]
[1764028803470,0.08602,88321.0,88320.0,0.08147731]
[1764028803655,0.08602,88319.0,88318.0,0.07157879]
[1764028803964,0.90821803,88319.0,88318.0,0.06220282]
[1764028804165,0.90821803,88319.0,88312.0,0.00010915]
[1764028804166,0.08602,88313.0,88312.0,0.00010915]
[1764028804361,0.89821803,88313.0,88312.0,0.00010915]
[1764028805466,0.46821803,88313.0,88312.0,0.09635655]
[1764028805670,0.46821803,88313.0,88312.0,0.12371655]
[1764028805970,0.46921803,88313.0,88312.0,0.12371655]
[1764028806667,0.43319803,88313.0,88312.0,0.48451655]
[1764028807072,0.51921803,88313.0,88312.0,0.48451655]
[1764028808962,0.51921803,88313.0,88312.0,0.44582915]
[1764028809265,0.89921803,88313.0,88312.0,0.00010915]
[1764028809766,1.26001803,88313.0,88312.0,0.00010915]
[1764028809964,0.08602,88311.0,88310.0,0.1784]
[1764028810158,0.79219803,88311.0,88291.0,0.10181943]
[1764028810363,0.08602,88295.0,88294.0,0.44572]
[1764028810564,0.91821803,88295.0,88294.0,0.44572]
[1764028811070,0.53831609,88295.0,88294.0,0.44572]
[1764028811266,0.96831609,88295.0,88294.0,0.44572]
[1764028811872,0.97964569,88295.0,88294.0,0.44572]
[1764028812068,0.69831609,88295.0,88294.0,0.44572]
[1764028812471,0.96831609,88295.0,88294.0,0.44572]
[1764028812670,0.86831609,88295.0,88294.0,0.44572]
[1764028812871,0.53831609,88295.0,88294.0,0.44572]
[1764028814880,0.97831609,88295.0,88294.0,0.44572]
[1764028815081,0.97831609,88295.0,88294.0,0.08492]
[1764028816381,0.71831609,88295.0,88294.0,0.08492]
[1764028816677,0.81831609,88295.0,88294.0,0.08492]
[1764028824089,0.08587,88290.0,88289.0,0.08535]
[1764028824278,0.88806803,88290.0,88289.0,0.08535]
[1764028826686,0.51806803,88290.0,88289.0,0.08535]
[1764028826877,0.51806803,88290.0,88289.0,0.16657072]
[1764028827572,0.51806803,88290.0,88289.0,0.08535]
[1764028837384,0.51806803,88290.0,88289.0,0.18716943]
[1764028838188,0.51806803,88290.0,88289.0,0.08535]
[1764028855519,0.93806803,88290.0,88289.0,0.08535]
[1764028859212,0.86806803,88290.0,88289.0,0.08535]
[1764028860616,0.86806803,88290.0,88289.0,0.04312]
[1764028861118,0.86806803,88290.0,88289.0,0.08052]
[1764028862821,0.56806803,88290.0,88289.0,0.08052]
[1764028864023,0.91806803,88290.0,88289.0,0.08052]
[1764028865410,0.53806803,88290.0,88289.0,0.08052]
[1764028865917,0.53806803,88290.0,88274.0,0.3608]
[1764028865918,0.011331,88285.0,88248.0,0.02062]
[1764028866119,0.011331,88285.0,88250.0,0.00012976]
[1764028866120,0.0113352,88251.0,88250.0,0.00012976]
[1764028866322,1.02216238,88251.0,88250.0,0.00012976]
[1764028866524,1.37162718,88251.0,88250.0,0.02074976]
[1764028866716,0.96162718,88251.0,88250.0,0.09372976]
[1764028867020,1.41296238,88251.0,88250.0,0.09372976]
[1764028867417,1.41296238,88251.0,88250.0,0.02074976]
[1764028869223,1.41296238,88251.0,88250.0,0.00012976]
[1764028870225,1.40162718,88251.0,88250.0,0.00012976]
[1764028870427,1.40166718,88251.0,88250.0,0.00012976]
[1764028872027,1.40166718,88251.0,88250.0,0.02467976]
[1764028872623,1.40166718,88251.0,88250.0,0.00012976]
[1764028873217,0.0113354,88250.0,88246.0,0.0002833]
[1764028873424,0.0113382,88229.0,88221.0,0.08141605]
[1764028873627,0.0113382,88229.0,88225.0,0.02455]
[1764028873628,0.0113384,88226.0,88225.0,0.02455]
[1764028873817,0.84353643,88226.0,88225.0,0.10239]
[1764028874330,0.84353643,88226.0,88225.0,0.02455]
[1764028874331,0.84367669,88226.0,88225.0,0.02455]
[1764028874924,0.84367669,88226.0,88220.0,0.02455]
[1764028875120,0.84367669,88226.0,88216.0,0.3608]
[1764028875327,0.0113387,88224.0,88220.0,0.02455]
[1764028875526,0.00219803,88223.0,88220.0,0.02455]
[1764028875730,0.83219803,88223.0,88220.0,0.02455]
[1764028876229,0.83219803,88223.0,88222.0,0.101]
[1764028877025,0.83219803,88223.0,88222.0,0.14309]
[1764028877233,0.83219803,88223.0,88222.0,0.101]
[1764028877725,0.83219803,88223.0,88222.0,0.14265]
[1764028878118,0.83219803,88223.0,88222.0,0.14165]
[1764028878324,0.83219803,88223.0,88222.0,0.1]
[1764028879427,0.83219803,88223.0,88222.0,0.18265]
[1764028879629,0.44219803,88223.0,88222.0,0.18265]
[1764028882129,0.44219803,88223.0,88222.0,0.193989]
[1764028884418,0.44219803,88223.0,88222.0,0.18265]
[1764028889933,0.82219803,88223.0,88222.0,0.1]
[1764028893230,0.82219803,88223.0,88222.0,0.0766156]
[1764028894427,1.00091803,88223.0,88222.0,0.0766156]
[1764028895634,1.00161106,88223.0,88222.0,0.0766156]
[1764028896433,0.82289106,88223.0,88222.0,0.0766156]
[1764028896632,1.00161106,88223.0,88222.0,0.0766156]
[1764028898340,1.00161106,88223.0,88222.0,0.1182656]
[1764028898530,0.82289106,88223.0,88222.0,0.0766156]
[1764028898732,1.00161106,88223.0,88222.0,0.0766156]
[1764028899141,1.00161106,88223.0,88222.0,0.1182656]
[1764028899338,1.00161106,88223.0,88222.0,0.1592656]
[1764028899539,0.82289106,88223.0,88222.0,0.1592656]
[1764028899739,0.52289106,88223.0,88222.0,0.1592656]
[1764028901342,0.44289106,88223.0,88222.0,0.15957257]
[1764028905943,0.80289106,88223.0,88222.0,0.15957257]
[1764028906448,0.80289106,88223.0,88222.0,0.1592656]
[1764028906633,0.80289106,88223.0,88222.0,0.0766156]
[1764028907235,0.00289106,88223.0,88222.0,0.0766156]
[1764028907443,0.00189106,88223.0,88222.0,0.0766156]
[1764028907645,0.00289106,88223.0,88222.0,0.0766156]
[1764028907836,0.00289106,88223.0,88222.0,0.5166156]
[1764028908546,0.00289106,88223.0,88222.0,0.0766156]
[1764028914339,0.0113404,88211.0,88210.0,0.10795]
[1764028914544,0.37446498,88211.0,88210.0,0.02455]
[1764028915440,0.37446498,88211.0,88210.0,0.10795]
[1764028915640,0.37446498,88211.0,88210.0,0.13795]
[1764028915851,0.37446498,88211.0,88210.0,0.10795]
[1764028916345,0.37546498,88211.0,88210.0,0.10795]
[1764028916952,0.37546498,88211.0,88210.0,0.51825697]
[1764028917249,0.37546498,88211.0,88210.0,0.10825697]
[1764028918152,0.37546498,88211.0,88210.0,0.54825697]
[1764028918444,0.37546498,88211.0,88210.0,0.10825697]
[1764028918649,0.37546498,88211.0,88210.0,0.56825697]
[1764028920744,0.36412458,88211.0,88210.0,0.56825697]
[1764028921753,0.00332458,88211.0,88210.0,0.57825697]
[1764028923652,0.00332458,88211.0,88210.0,0.07388697]
[1764028923849,0.00332458,88211.0,88210.0,0.11312697]
[1764028924548,0.00332458,88211.0,88210.0,0.55312697]
[1764028926954,0.36412458,88211.0,88210.0,0.55312697]
[1764028929260,0.36312458,88211.0,88210.0,0.55312697]
[1764028929558,0.36412458,88211.0,88210.0,0.55312697]
[1764028929959,0.36512458,88211.0,88210.0,0.55312697]
[1764028930158,0.36612458,88211.0,88210.0,0.55312697]
[1764028931763,0.36612458,88211.0,88210.0,0.49267]
[1764028933663,0.36612458,88211.0,88210.0,0.50267]
[1764028934552,0.0376,88207.0,88206.0,0.07992343]
[1764028934856,0.05113893,88207.0,88206.0,0.25992343]
[1764028935051,0.07711,88194.0,88193.0,0.08141605]
[1764028935246,0.44024296,88194.0,88193.0,0.16105605]
[1764028935462,0.44024296,88194.0,88193.0,0.47964]
[1764028936760,0.44124296,88194.0,88193.0,0.47964]
[1764028938260,0.44124296,88194.0,88193.0,0.07964]
[1764028938455,0.44124296,88194.0,88193.0,0.25964]
[1764028938660,0.44124296,88194.0,88193.0,0.26964]
[1764028939362,0.44124296,88194.0,88193.0,0.49964]
[1764028939562,0.44124296,88194.0,88193.0,0.27964]
[1764028939865,0.44124296,88194.0,88193.0,0.24964]
[1764028940157,0.36413296,88194.0,88193.0,0.24964]
[1764028940368,0.00333296,88194.0,88193.0,0.4709827]
[1764028940862,0.00333296,88194.0,88193.0,0.45964]
[1764028941062,0.44124296,88194.0,88193.0,0.45964]
[1764028961274,0.44124296,88194.0,88193.0,0.41841]
[1764028961780,0.44124296,88194.0,88193.0,0.45883]
[1764028962378,0.10544,88191.0,88190.0,0.08141605]
[1764028962572,0.1167831,88190.0,88189.0,0.15115605]
[1764028962882,0.11898113,88190.0,88189.0,0.59157605]
[1764028963386,0.11898113,88190.0,88189.0,0.51016]
[1764028965085,0.11998113,88190.0,88189.0,0.51016]
[1764028967582,0.06859803,88190.0,88189.0,0.51016]
[1764028967782,0.00319803,88190.0,88189.0,0.51016]
[1764028972389,0.00013493,88194.0,88193.0,0.1215027]
[1764028972578,0.3608,88208.0,88198.0,0.11016]
[1764028972778,0.0113412,88205.0,88198.0,0.51235803]
[1764028972983,0.0113412,88205.0,88204.0,0.11016]
[1764028973183,0.0113412,88205.0,88204.0,0.57235803]
[1764028973682,0.07757238,88205.0,88204.0,0.57235803]
[1764028973883,0.11761238,88205.0,88204.0,0.57235803]
[1764028974294,0.07757238,88205.0,88204.0,0.57235803]
[1764028974489,0.07957238,88205.0,88204.0,0.57235803]
[1764028974790,0.11961238,88205.0,88204.0,0.57235803]
[1764028975388,0.12061238,88205.0,88204.0,0.57235803]
[1764028976079,0.12061238,88205.0,88204.0,0.65397678]
[1764028976080,0.00383118,88205.0,88204.0,0.65397678]
[1764028976293,0.00017008,88213.0,88212.0,0.15705]
[1764028976586,0.00017008,88213.0,88212.0,0.53924803]
[1764028976892,0.00017008,88213.0,88212.0,0.62081433]
[1764028977085,0.00017008,88213.0,88212.0,0.53924803]
[1764028977589,0.4343069,88238.0,88237.0,0.13086]
[1764028977889,0.49845957,88238.0,88237.0,0.53305803]
[1764028978085,0.49845957,88238.0,88237.0,0.13305803]
[1764028978304,0.0113397,88216.0,88215.0,0.1788]
[1764028978489,0.13766237,88216.0,88215.0,0.68185803]
[1764028978791,0.00073267,88216.0,88215.0,0.50305803]
[1764028979188,0.06290267,88216.0,88215.0,0.50305803]
[1764028979681,0.06290267,88216.0,88207.0,0.00017008]
[1764028979682,0.1369308,88208.0,88207.0,0.00017008]
[1764028979882,0.78433883,88208.0,88207.0,8e-08]
[1764028980294,0.82313883,88208.0,88207.0,8e-08]
[1764028980997,0.84859494,88208.0,88207.0,8e-08]
[1764028981195,0.85059494,88208.0,88207.0,8e-08]
[1764028982094,0.63059494,88208.0,88207.0,8e-08]
[1764028982300,0.63159494,88208.0,88207.0,8e-08]
[1764028984999,1.03159494,88208.0,88207.0,8e-08]
[1764028986598,1.27159494,88208.0,88207.0,8e-08]
[1764028986900,1.00159494,88208.0,88207.0,8e-08]
[1764028987801,1.28159494,88208.0,88207.0,8e-08]
[1764028993104,0.84159494,88208.0,88207.0,8e-08]
[1764028993301,1.03159494,88208.0,88207.0,8e-08]
[1764028993603,1.21159494,88208.0,88207.0,8e-08]
[1764028996198,0.84159494,88208.0,88207.0,8e-08]
[1764028996393,1.23159494,88208.0,88207.0,8e-08]
[1764028996799,0.83159494,88208.0,88207.0,8e-08]
[1764028997196,1.01047494,88208.0,88207.0,8e-08]
[1764028997600,0.98501883,88208.0,88207.0,8e-08]
[1764028998518,1.00984918,88208.0,88207.0,8e-08]
[1764028999406,0.98501883,88208.0,88207.0,8e-08]
[1764029000003,1.38501883,88208.0,88207.0,8e-08]
[1764029000202,1.40984946,88208.0,88207.0,8e-08]
[1764029000413,1.38501883,88208.0,88207.0,8e-08]
[1764029001214,1.40984896,88208.0,88207.0,8e-08]
[1764029001416,1.38501883,88208.0,88207.0,8e-08]
[1764029002302,1.74581883,88208.0,88207.0,8e-08]
[1764029003409,1.34581883,88208.0,88207.0,8e-08]
[1764029003606,1.33184357,88208.0,88207.0,8e-08]
[1764029003808,1.69184357,88208.0,88207.0,8e-08]
[1764029004108,0.1530338,88184.0,88183.0,0.00677634]
[1764029004319,0.87683183,88184.0,88183.0,0.07615634]
[1764029004906,0.87683183,88184.0,88183.0,0.00677634]
[1764029005616,0.153036,88167.0,88166.0,0.00028356]
[1764029005812,0.0113496,88140.0,88138.0,0.13151]
[1764029006107,0.11547388,88139.0,88138.0,0.57799805]
[1764029006311,0.00073267,88139.0,88138.0,0.57799805]
[1764029006707,0.00084884,88139.0,88138.0,0.57799805]
[1764029008216,0.15388844,88139.0,88138.0,0.57799805]
[1764029009213,0.14253884,88139.0,88138.0,0.57799805]
[1764029009513,0.14253884,88139.0,88138.0,0.51586805]
[1764029009705,0.06816884,88139.0,88138.0,0.42219803]
[1764029009909,0.25421884,88139.0,88138.0,0.51370803]
[1764029010108,0.32153884,88139.0,88138.0,0.51370803]
[1764029010810,0.00084884,88139.0,88138.0,0.51370803]
[1764029011006,0.00184884,88139.0,88138.0,0.51370803]
[1764029012716,0.00284884,88139.0,88138.0,0.51370803]
[1764029013318,0.00184884,88139.0,88138.0,0.51370803]
[1764029013518,0.00284884,88139.0,88138.0,0.51370803]
[1764029014116,0.00084884,88139.0,88138.0,0.51370803]
[1764029014416,0.00284884,88139.0,88138.0,0.51370803]
[1764029015418,0.07721884,88139.0,88138.0,0.51370803]
[1764029015714,0.14353884,88139.0,88138.0,0.51370803]
[1764029015920,0.00184884,88139.0,88138.0,0.51370803]
[1764029017018,0.00284884,88139.0,88138.0,0.51370803]
[1764029018212,0.00017019,88147.0,88146.0,0.1830387]
[1764029018416,0.00017019,88147.0,88146.0,0.64523673]
[1764029019130,0.3608,88157.0,88156.0,0.13151]
[1764029019414,0.3608,88157.0,88156.0,0.55370803]
[1764029020407,0.3618,88157.0,88156.0,0.55370803]
[1764029020611,0.3628,88157.0,88156.0,0.55370803]
[1764029021322,0.36097019,88165.0,88164.0,0.1876364]
[1764029021522,0.36097019,88165.0,88164.0,0.58983443]
[1764029022319,0.50007,88182.0,88181.0,0.14083]
[1764029022522,0.36153267,88182.0,88181.0,0.54302803]
[1764029023711,0.36253267,88182.0,88181.0,0.54302803]
[1764029023921,0.43139267,88182.0,88181.0,0.54302803]
[1764029024823,0.50180267,88182.0,88181.0,0.54302803]
[1764029025322,0.50180267,88182.0,88181.0,0.55302803]
[1764029025526,0.50180267,88182.0,88181.0,0.06937803]
[1764029025734,0.50180267,88182.0,88181.0,0.00219803]
[1764029026027,0.50180267,88182.0,88181.0,0.06937803]
[1764029026218,0.50180267,88182.0,88181.0,0.14302803]
[1764029026617,0.50280267,88182.0,88181.0,0.14302803]
[1764029027119,0.50180267,88182.0,88181.0,0.14302803]
[1764029027326,0.50280267,88182.0,88181.0,0.14302803]
[1764029027523,0.36353267,88182.0,88181.0,0.52302803]
[1764029028524,0.50280267,88182.0,88181.0,0.52302803]
[1764029028927,0.50180267,88182.0,88181.0,0.52302803]
[1764029029921,0.50180267,88182.0,88181.0,0.16302803]
[1764029030529,0.50080267,88182.0,88181.0,0.16302803]
[1764029030722,0.50180267,88182.0,88181.0,0.16302803]
[1764029031526,0.50280267,88182.0,88181.0,0.16302803]
[1764029031724,0.50280267,88182.0,88181.0,0.14302803]
[1764029032231,0.50180267,88182.0,88181.0,0.14302803]
[1764029032428,0.50280267,88182.0,88181.0,0.56302803]
[1764029033330,0.50280267,88182.0,88181.0,0.14302803]
[1764029034930,0.50180267,88182.0,88181.0,0.06937803]
[1764029035224,0.50180267,88182.0,88181.0,0.00219803]
[1764029035731,0.50180267,88182.0,88181.0,0.50736803]
[1764029035934,0.36253267,88182.0,88181.0,0.48736803]
[1764029036230,0.03962,88214.0,88189.0,0.1365132]
[1764029036434,0.01162443,88206.0,88189.0,0.54871123]
[1764029036634,0.00028343,88206.0,88189.0,0.54871123]
[1764029036836,0.3608,88198.0,88189.0,0.54871123]
[1764029037131,0.42358,88200.0,88199.0,0.12517]
[1764029037321,0.42431267,88200.0,88199.0,0.51736803]
[1764029037921,0.49263267,88200.0,88199.0,0.51736803]
[1764029038423,0.49363267,88200.0,88199.0,0.51736803]
[1764029038620,0.3618,88200.0,88199.0,0.51736803]
[1764029039029,0.002,88200.0,88199.0,0.51736803]
[1764029039232,0.00028343,88206.0,88205.0,0.1365111]
[1764029039430,3.52e-06,88208.0,88207.0,0.12517]
[1764029039632,3.52e-06,88208.0,88207.0,0.50736803]
[1764029039837,0.3608,88224.0,88223.0,0.12517]
[1764029040131,0.3608,88236.0,88226.0,0.12517]
[1764029040332,0.0113373,88235.0,88226.0,0.50736803]
[1764029040532,0.3608,88236.0,88226.0,0.50736803]
[1764029040729,0.13218267,88227.0,88226.0,0.14736803]
[1764029041033,0.00035,88227.0,88226.0,0.51736803]
[1764029041231,0.00017009,88235.0,88234.0,0.12517]
[1764029041430,0.00017009,88235.0,88234.0,0.58870543]
[1764029042433,0.00117009,88235.0,88234.0,0.58870543]
[1764029042830,0.00017009,88235.0,88234.0,0.58870543]
[1764029043036,0.00117009,88235.0,88234.0,0.58870543]
[1764029043735,0.00217009,88235.0,88234.0,0.94950543]
[1764029044525,0.00217009,88235.0,88234.0,0.93816803]
[1764029044730,0.00290276,88235.0,88234.0,0.93816803]
[1764029044931,0.49480276,88235.0,88234.0,0.14219803]
[1764029045238,0.1311,88219.0,88218.0,0.12534009]
[1764029045433,0.49263267,88219.0,88218.0,0.41753812]
[1764029045836,0.36153267,88219.0,88218.0,0.41753812]
[1764029046631,0.49263267,88219.0,88218.0,0.12753812]
[1764029047030,0.49263267,88219.0,88218.0,0.00236812]
[1764029047240,0.85343267,88219.0,88218.0,0.00017009]
[1764029047637,0.1311,88201.0,88200.0,0.16289]
[1764029047835,0.13183267,88201.0,88200.0,0.59508803]
[1764029048439,0.13183267,88201.0,88200.0,0.55736803]
[1764029048839,0.13283267,88201.0,88200.0,0.55736803]
[1764029049241,0.13183267,88201.0,88200.0,0.47736803]
[1764029049545,0.13283267,88201.0,88200.0,0.00219803]
[1764029049935,0.13283267,88201.0,88200.0,0.28219803]
[1764029050136,0.13283267,88201.0,88200.0,0.00219803]
[1764029050742,0.13383267,88201.0,88200.0,0.00219803]
[1764029051437,0.13283267,88201.0,88200.0,0.00219803]
[1764029051642,0.13383267,88201.0,88200.0,0.00219803]
[1764029052037,0.13283267,88201.0,88200.0,0.00219803]
[1764029052242,0.13383267,88201.0,88200.0,0.00219803]
[1764029052740,0.1424727,88193.0,88192.0,0.00017009]
[1764029052932,0.50400537,88193.0,88192.0,0.43017009]
[1764029053243,0.50400537,88193.0,88192.0,0.00017009]
[1764029053645,0.0113445,88179.0,88169.0,0.3721457]
[1764029053843,0.1408845,88179.0,88178.0,0.06012]
[1764029054041,0.14161717,88179.0,88178.0,0.07219803]
[1764029054242,0.14161717,88179.0,88178.0,0.00219803]
[1764029054444,0.12954,88167.0,88166.0,0.12399356]
[1764029054641,0.13027267,88167.0,88166.0,0.54619159]
[1764029055542,0.00073267,88167.0,88166.0,0.55753779]
[1764029056138,0.00073267,88167.0,88166.0,0.55853779]
[1764029056944,0.00073267,88167.0,88166.0,0.55953779]
[1764029059442,0.3608,88172.0,88171.0,0.12371]
[1764029059748,0.36153267,88172.0,88171.0,0.54590803]
[1764029060340,0.50241807,88172.0,88171.0,0.12590803]
[1764029060541,0.50241807,88172.0,88171.0,0.00319803]
[1764029061350,0.140886,88167.0,88166.0,0.00028356]
[1764029061551,0.14161867,88167.0,88166.0,0.00028356]
[1764029062545,0.14361867,88167.0,88166.0,0.00028356]
[1764029065252,0.14261867,88167.0,88166.0,0.00028356]
[1764029065465,0.12954,88159.0,88158.0,0.12388009]
[1764029065651,0.12954,88159.0,88158.0,0.50607812]
[1764029065652,0.49107267,88159.0,88158.0,0.50607812]
[1764029065852,0.49107267,88159.0,88158.0,0.42607812]
[1764029066253,0.49107267,88159.0,88158.0,0.54607812]
[1764029066655,0.49107267,88159.0,88158.0,0.55742532]
[1764029067859,0.49207267,88159.0,88158.0,0.55742532]
[1764029068452,0.49107267,88159.0,88158.0,0.55742532]
[1764029068658,0.49207267,88159.0,88158.0,0.55742532]
[1764029068957,0.36253267,88159.0,88158.0,0.55742532]
[1764029069955,0.00173267,88159.0,88158.0,0.55742532]
[1764029070557,0.001,88159.0,88158.0,0.67762532]
[1764029070757,0.3608,88172.0,88171.0,0.12371]
[1764029071057,0.36153267,88172.0,88171.0,0.50590803]
[1764029071859,0.36353267,88172.0,88171.0,0.50590803]
[1764029072656,0.3628,88172.0,88171.0,0.51725353]
[1764029074461,0.002,88172.0,88171.0,0.51725353]
[1764029074760,0.001,88172.0,88171.0,0.51725353]
[1764029074960,0.00017009,88175.0,88174.0,0.1350551]
[1764029075162,0.00017009,88175.0,88174.0,0.56725313]
[1764029075660,0.13044276,88175.0,88174.0,0.55590803]
[1764029076458,0.00090276,88175.0,88174.0,0.67610803]
[1764029076860,0.06209276,88175.0,88174.0,0.67610803]
[1764029077849,0.13044276,88175.0,88174.0,0.67610803]
[1764029079063,0.06209276,88175.0,88174.0,0.67610803]
[1764029079763,0.00090276,88175.0,88174.0,0.67610803]
[1764029081766,0.00017009,88175.0,88174.0,0.67610803]
[1764029082758,0.06136009,88175.0,88174.0,0.67610803]
[1764029083365,0.06209276,88175.0,88174.0,0.67610803]
[1764029084163,0.00017009,88175.0,88174.0,0.67610803]
[1764029088569,0.05565276,88175.0,88174.0,0.67610803]
[1764029088775,0.11682276,88175.0,88174.0,0.67610803]
[1764029089675,0.00090276,88175.0,88174.0,0.67610803]
[1764029089876,0.00017009,88175.0,88174.0,0.67610803]
[1764029090472,0.00017009,88175.0,88174.0,0.85502803]
[1764029092578,0.00028343,88206.0,88197.0,0.11685]
[1764029092777,0.0113415,88203.0,88197.0,0.66796803]
[1764029092981,0.0113418,88201.0,88197.0,0.66796803]
[1764029093283,0.0113413,88204.0,88197.0,0.66796803]
[1764029093581,0.00045352,88206.0,88197.0,0.66796803]
[1764029094374,0.11637352,88206.0,88205.0,0.11685]
[1764029094580,0.11710619,88206.0,88205.0,0.52904803]
[1764029094980,0.11710619,88206.0,88205.0,0.54038913]
[1764029095181,0.00118619,88206.0,88205.0,0.54038913]
[1764029095576,0.00045352,88206.0,88205.0,0.54038913]
[1764029095777,0.00145352,88206.0,88205.0,0.54038913]
[1764029096278,0.00045352,88206.0,88205.0,0.54038913]
[1764029096679,0.3608,88208.0,88207.0,0.13559]
[1764029096886,0.3608,88208.0,88207.0,0.69670803]
[1764029097477,0.3608,88218.0,88217.0,0.1157896]
[1764029097682,0.3608,88218.0,88217.0,0.73556803]
[1764029097885,0.46867267,88218.0,88217.0,0.72556803]
[1764029098974,0.46867267,88218.0,88217.0,0.04219803]
[1764029099278,0.46867267,88218.0,88217.0,0.00219803]
[1764029100179,0.46967267,88218.0,88217.0,0.00219803]
[1764029100381,0.1184805,88210.0,88209.0,0.10462009]
[1764029100577,0.48001317,88210.0,88209.0,0.05480812]
[1764029100981,0.48001317,88210.0,88209.0,0.10681812]
[1764029102180,0.46867267,88210.0,88209.0,0.10681812]
[1764029102375,0.36253267,88210.0,88209.0,0.10681812]
[1764029102680,0.47067267,88210.0,88209.0,0.10681812]
[1764029102885,0.46967267,88210.0,88209.0,0.10681812]
[1764029103083,0.47067267,88210.0,88209.0,0.00017009]
[1764029103277,0.1184828,88192.0,88191.0,0.10445]
[1764029103479,0.48001547,88192.0,88191.0,0.17664803]
[1764029103679,0.41340267,88192.0,88191.0,0.53664803]
[1764029104080,0.46867267,88192.0,88191.0,0.53664803]
[1764029104278,0.41340267,88192.0,88191.0,0.53664803]
[1764029104481,0.36153267,88192.0,88191.0,0.53664803]
[1764029104677,0.3608,88192.0,88191.0,0.53664803]
[1764029105581,0.00017009,88200.0,88199.0,0.0113419]
[1764029105786,0.00017009,88200.0,88199.0,0.51798993]
[1764029105973,0.00017009,88200.0,88199.0,0.50664803]
[1764029106174,0.10804276,88200.0,88199.0,0.50664803]
[1764029106980,0.00090276,88200.0,88199.0,0.50664803]
[1764029107180,0.00017009,88200.0,88199.0,0.50664803]
[1764029108292,0.10804276,88200.0,88199.0,0.10664803]
[1764029108482,0.10804276,88200.0,88199.0,0.18664803]
[1764029108688,0.10804276,88200.0,88199.0,0.55664803]
[1764029109290,0.00090276,88200.0,88199.0,0.67684803]
[1764029109492,0.00017009,88200.0,88199.0,0.67684803]
[1764029109688,0.41267,88212.0,88211.0,0.10445]
[1764029109892,0.41340267,88212.0,88211.0,0.22684803]
[1764029110094,0.41340267,88212.0,88211.0,0.66684803]
[1764029110491,0.36153267,88212.0,88211.0,0.66684803]
[1764029110893,0.36253267,88212.0,88211.0,0.66684803]
[1764029111487,0.3618,88212.0,88211.0,0.66684803]
[1764029111689,0.00017009,88220.0,88219.0,0.10496]
[1764029111889,0.00017009,88220.0,88219.0,0.68869733]
[1764029113697,0.00017009,88220.0,88219.0,0.56849733]
[1764029114703,0.3608,88222.0,88221.0,0.10496]
[1764029114889,0.3608,88222.0,88221.0,0.54715803]
[1764029115800,0.00017009,88230.0,88229.0,0.10496]
[1764029115995,0.05111009,88230.0,88229.0,0.53715803]
[1764029116195,0.05184276,88230.0,88229.0,0.53715803]
[1764029116398,0.10463276,88230.0,88229.0,0.10715803]
[1764029117696,0.10463276,88230.0,88229.0,0.51715803]
[1764029118703,0.10463276,88230.0,88229.0,0.12715803]
[1764029119205,0.10463276,88230.0,88229.0,0.49715803]
[1764029120003,0.10463276,88230.0,88229.0,0.12715803]
[1764029120597,0.10463276,88230.0,88229.0,0.49715803]
[1764029120798,0.10463276,88230.0,88229.0,0.12715803]
[1764029120992,0.10463276,88230.0,88229.0,0.53715803]
[1764029121204,0.10563276,88230.0,88229.0,0.12715803]
[1764029122198,0.10563276,88230.0,88229.0,0.00219803]
[1764029122400,0.10563276,88230.0,88221.0,0.00017009]
[1764029122401,0.115069,88222.0,88221.0,0.00017009]
[1764029122711,0.115071,88206.0,88205.0,0.10496]
[1764029122890,0.47660367,88206.0,88205.0,0.41219803]
[1764029123089,0.47660367,88206.0,88205.0,0.00219803]
[1764029123500,0.47660367,88206.0,88205.0,0.00085463]
[1764029123698,0.1150719,88199.0,88198.0,0.17892]
[1764029123899,0.11714797,88199.0,88198.0,0.17892]
[1764029124100,0.10580607,88199.0,88198.0,0.63977463]
[1764029124404,0.00207607,88199.0,88198.0,0.73607663]
[1764029125306,0.00307607,88199.0,88198.0,0.28473463]
[1764029125605,0.00307607,88199.0,88198.0,0.66473463]
[1764029126796,0.00207607,88199.0,88198.0,0.66473463]
[1764029128007,0.00207607,88199.0,88198.0,0.78493463]
[1764029128305,0.3608,88206.0,88205.0,0.10496]
[1764029128502,0.36287607,88206.0,88205.0,0.47581463]
[1764029128895,0.3608,88206.0,88205.0,0.10581463]
[1764029129100,0.3608,88206.0,88205.0,0.51581463]
[1764029129996,0.00017009,88207.0,88206.0,0.116301]
[1764029130199,0.00017009,88207.0,88206.0,0.48715563]
[1764029130399,0.10597616,88207.0,88206.0,0.47581463]
[1764029130599,0.10597616,88207.0,88206.0,0.00085463]
[1764029131312,0.10373,88203.0,88202.0,0.1202]
[1764029131498,0.47794747,88203.0,88202.0,0.1202]
[1764029131713,0.47794747,88203.0,88202.0,0.54105463]
[1764029131908,0.47794747,88203.0,88202.0,0.12105463]
[1764029132313,0.47794747,88203.0,88202.0,0.17270463]
[1764029133012,0.47894747,88203.0,88202.0,0.10581463]
[1764029133497,0.47994747,88203.0,88202.0,0.10581463]
[1764029133909,0.115072,88198.0,88190.0,0.12117334]
[1764029134112,0.11714807,88198.0,88190.0,0.03969]
[1764029135212,0.11714807,88198.0,88197.0,0.05182009]
[1764029135411,0.11714807,88198.0,88197.0,0.56598472]
[1764029135412,0.11814807,88198.0,88197.0,0.56598472]
[1764029135606,0.10680607,88198.0,88197.0,0.56598472]
[1764029136206,0.10780607,88198.0,88197.0,0.56598472]
[1764029136905,0.10680607,88198.0,88197.0,0.56598472]
[1764029137715,0.10580607,88198.0,88197.0,0.56598472]
[1764029138105,0.10580607,88198.0,88197.0,0.10598472]
[1764029138906,0.10580607,88198.0,88197.0,0.22618472]
[1764029139223,0.10580607,88198.0,88197.0,0.63618472]
[1764029139414,0.10680607,88198.0,88197.0,0.63618472]
[1764029140214,0.10780607,88198.0,88197.0,0.22618472]
[1764029140605,0.10680607,88198.0,88197.0,0.22618472]
[1764029141616,0.10780607,88198.0,88197.0,0.22618472]
[1764029142008,0.10780607,88198.0,88197.0,0.62618472]
[1764029142318,0.10680607,88198.0,88197.0,0.22618472]
[1764029142520,0.10680607,88198.0,88197.0,0.66618472]
[1764029142718,0.10780607,88198.0,88197.0,0.22618472]
[1764029143216,0.10680607,88198.0,88197.0,0.22618472]
[1764029143411,0.10680607,88198.0,88197.0,0.17287472]
[1764029143617,0.10680607,88198.0,88197.0,0.22533472]
[1764029143806,0.10680607,88198.0,88197.0,0.12122472]
[1764029144203,0.10680607,88198.0,88197.0,0.00017009]
[1764029144711,0.10780607,88198.0,88197.0,0.00017009]
[1764029146018,0.10680607,88198.0,88197.0,0.00017009]
[1764029146215,0.10780607,88198.0,88197.0,0.00017009]
[1764029146414,0.09641,88181.0,88180.0,0.1202]
[1764029146612,0.107755,88175.0,88174.0,0.09757]
[1764029146814,0.107755,88175.0,88174.0,0.09842463]
[1764029146815,0.10983107,88175.0,88174.0,0.09842463]